[Event "ESP-ch U2000 2024"]
[Site "Albacete"]
[Date "2024.08.29"]
[Round "4.5"]
[White "Marquez Leon, Juan Antonio"]
[Black "Reig Albero, Ferran"]
[Result "0-1"]
[ECO "D52"]
[WhiteElo "1916"]
[BlackElo "1969"]
[Annotator "RC"]
[PlyCount "161"]
[EventDate "2024.08.27"]
[EventType "swiss"]
[EventCountry "ESP"]
[SourceTitle "playchess.com"]
[Source "ChessBase"]
[SourceQuality "1"]
[TimeControl "5400+30"]

1. d4 {[%emt 0:00:03]} Nf6 {[%emt 0:00:11]} 2. Nf3 {[%emt 0:00:04]} e6 {[%emt 0:00:14]} 3. c4 {[%emt 0:00:44]} d5 {[%emt 0:00:15]} 4. Bg5 {[%emt 0:01:03]} Nbd7 {[%emt 0:01:22]} 5. e3 {[%emt 0:00:18]} c6 {[%emt 0:01:03]} 6. Nc3 {[%emt 0:00:24]} Qa5 {[%emt 0:01:31]} 7. a3 {[%emt 0:01:08]} Ne4 {[%emt 0:05:26]} 8. Qc1 {[%emt 0:00:34]} dxc4 {[%emt 0:02:27]} 9. Bf4 {[%emt 0:01:00]} b5 {[%emt 0:03:07]} 10. Be2 {[%emt 0:01:16]} Be7 {[%emt 0:04:27]} 11. O-O {[%emt 0:02:34]} Nxc3 {[%emt 0:02:26]} 12. Qxc3 {[%emt 0:00:32]} Qxc3 {[%emt 0:01:15]} 13. bxc3 {[%emt 0:00:02]} Nb6 {[%emt 0:04:06]} 14. Ne5 {[%emt 0:01:45]} Bb7 {[%emt 0:03:43]} 15. Bf3 {[%emt 0:00:24]} Rc8 {[%emt 0:01:31]} 16. Rfb1 {[%emt 0:02:43]} f6 {[%emt 0:01:27]} 17. Nxc6 {[%emt 0:07:14]} Bxc6 {[%emt 0:00:22]} 18. Bxc6+ {[%emt 0:00:03]} Rxc6 {[%emt 0:00:16]} 19. Rxb5 {[%emt 0:00:02]} Bd6 {[%emt 0:05:33]} 20. a4 {[%emt 0:00:27]} Bxf4 {[%emt 0:00:23]} 21. exf4 {[%emt 0:00:25]} Kd7 {[%emt 0:00:41]} 22. a5 {[%emt 0:00:12]} Nd5 {[%emt 0:00:20]} 23. f5 {[%emt 0:00:28]} Nc7 {[%emt 0:06:37]} 24. fxe6+ {[%emt 0:01:08]} Rxe6 {[%emt 0:02:55]} 25. Rb7 {[%emt 0:00:02]} a6 {[%emt 0:10:24]} 26. g3 {[%emt 0:01:29]} Rc6 {[%emt 0:10:52]} 27. f4 {[%emt 0:01:12]} Kd6 {[%emt 0:03:26]} 28. Kf2 {[%emt 0:00:16]} Re8 {[%emt 0:00:37]} 29. Rab1 {[%emt 0:00:47]} Re7 {[%emt 0:00:41]} 30. Rb8 {[%emt 0:00:52]} Nd5 {[%emt 0:04:15]} 31. Rc1 {[%emt 0:00:02]} Kc7 {[%emt 0:00:41]} 32. Ra8 {[%emt 0:00:47]} f5 {[%emt 0:06:29]} 33. Rc2 {[%emt 0:00:38]} g6 {[%emt 0:01:00]} 34. Rc1 {[%emt 0:01:54]} Kd7 {[%emt 0:01:00]} 35. Rb8 {[%emt 0:00:16]} Rc8 {[%emt 0:02:13]} 36. Rb2 {[%emt 0:01:11]} Re3 {[%emt 0:01:13]} 37. Rb7+ {[%emt 0:01:59]} Rc7 {[%emt 0:00:15]} 38. Rb8 {[%emt 0:00:02]} Rxc3 {[%emt 0:00:37]} 39. Re1 {[%emt 0:00:01]} Nf6 {[%emt 0:02:06]} 40. Rb6 {[%emt 0:00:20]} Ne4+ {[%emt 0:00:25]} 41. Kf1 {[%emt 0:00:11]} Rb3 {[%emt 0:00:41]} 42. Rxa6 {[%emt 0:00:12]} c3 {[%emt 0:00:12]} 43. Rc1 {[%emt 0:00:19]} c2 {[%emt 0:00:18]} 44. Rb6 {[%emt 0:00:06]} Ra3 {[%emt 0:03:05]} 45. Rb2 {[%emt 0:00:20]} Rxa5 {[%emt 0:01:03]} 46. Rbxc2 {[%emt 0:00:13]} Rxc2 {[%emt 0:00:08]} 47. Rxc2 {[%emt 0:00:05]} Rd5 {[%emt 0:00:28]} 48. Ra2 {[%emt 0:00:12]} Ke6 {[%emt 0:01:56]} 49. Ra6+ {[%emt 0:00:21]} Rd6 {[%emt 0:00:16]} 50. Ra4 {[%emt 0:00:01]} Nc3 {[%emt 0:00:30]} 51. Rb4 {[%emt 0:00:02]} Kd5 {[%emt 0:00:31]} 52. Rb7 {[%emt 0:00:13]} h6 {[%emt 0:00:41]} 53. Rb4 {[%emt 0:00:20]} Re6 {[%emt 0:01:06]} 54. Kf2 {[%emt 0:00:53]} Ne2 {[%emt 0:00:52]} 55. Rb5+ {[%emt 0:00:28]} Kxd4 {[%emt 0:00:03]} 56. Rb8 {[%emt 0:00:11]} Nc3 {[%emt 0:00:08]} 57. Rd8+ {[%emt 0:00:07]} Nd5 {[%emt 0:00:15]} 58. Ra8 {[%emt 0:00:20]} Rb6 {[%emt 0:01:44]} 59. Ra4+ {[%emt 0:00:11]} Kc5 {[%emt 0:00:28]} 60. Ra5+ {[%emt 0:00:01]} Kd6 {[%emt 0:00:01]} 61. Ra8 {[%emt 0:00:42]} Nf6 {[%emt 0:00:31]} 62. Rd8+ {[%emt 0:00:08]} Ke6 {[%emt 0:00:23]} 63. h3 {[%emt 0:00:32]} Ne4+ {[%emt 0:00:14]} 64. Ke3 {[%emt 0:00:22]} Rb3+ {[%emt 0:00:34]} 65. Kd4 {[%emt 0:00:01]} Rxg3 {[%emt 0:00:28]} 66. Re8+ {[%emt 0:00:02]} Kf7 {[%emt 0:00:35]} 67. Ra8 {[%emt 0:00:01]} Rxh3 {[%emt 0:01:17]} 68. Ke5 {[%emt 0:00:02]} h5 {[%emt 0:01:16]} 69. Ra7+ {[%emt 0:00:11]} Kf8 {[%emt 0:00:12]} 70. Ke6 {[%emt 0:00:01]} Rb3 {[%emt 0:00:46]} 71. Ra8+ {[%emt 0:00:02]} Kg7 {[%emt 0:00:10]} 72. Ra7+ {[%emt 0:00:01]} Kh6 {[%emt 0:00:27]} 73. Ra8 {[%emt 0:00:19]} Rb6+ {[%emt 0:00:22]} 74. Kf7 {[%emt 0:00:02]} Rb7+ {[%emt 0:00:12]} 75. Ke6 {[%emt 0:00:01]} h4 {[%emt 0:00:09]} 76. Rh8+ {[%emt 0:00:30]} Rh7 {[%emt 0:00:07]} 77. Ra8 {[%emt 0:00:01]} Kh5 {[%emt 0:00:16]} 78. Ke5 {[%emt 0:00:28]} h3 {[%emt 0:00:15]} 79. Ra2 {[%emt 0:00:05]} Kg4 {[%emt 0:00:09]} 80. Rb2 {[%emt 0:00:19]} h2 {[%emt 0:00:20]} 81. Kd4 0-1

[Event "ESP-ch U2000 2024"]
[Site "Albacete"]
[Date "2024.08.29"]
[Round "4.6"]
[White "Marin Lopez, Juan Jose"]
[Black "Conde Chamizo, Pablo"]
[Result "1-0"]
[ECO "B23"]
[WhiteElo "1895"]
[BlackElo "1936"]
[Annotator "RC"]
[PlyCount "233"]
[EventDate "2024.08.27"]
[EventType "swiss"]
[EventCountry "ESP"]
[SourceTitle "playchess.com"]
[Source "ChessBase"]
[SourceQuality "1"]
[TimeControl "5400+30"]

1. e4 {[%emt 0:04:35]} c5 {[%emt 0:00:05]} 2. Nc3 {[%emt 0:00:10]} g6 {[%emt 0:00:12]} 3. d4 {[%emt 0:00:32]} cxd4 {[%emt 0:00:33]} 4. Qxd4 {[%emt 0:00:13]} Nf6 {[%emt 0:00:06]} 5. Be3 {[%emt 0:00:07]} Nc6 {[%emt 0:03:42]} 6. Qd2 {[%emt 0:00:31]} Ng4 {[%emt 0:06:28]} 7. Bf4 {[%emt 0:00:16]} Qb6 {[%emt 0:00:18]} 8. f3 {[%emt 0:05:55]} Nge5 {[%emt 0:09:04]} 9. O-O-O {[%emt 0:03:42]} Bg7 {[%emt 0:00:35]} 10. Nd5 {[%emt 0:01:26]} Qd8 {[%emt 0:04:17]} 11. Bh6 {[%emt 0:02:25]} Kf8 {[%emt 0:03:15]} 12. Bxg7+ {[%emt 0:13:57]} Kxg7 {[%emt 0:00:10]} 13. f4 {[%emt 0:00:23]} Ng4 {[%emt 0:06:35]} 14. h3 {[%emt 0:04:30]} Nh6 {[%emt 0:05:10]} 15. Qc3+ {[%emt 0:05:38]} f6 {[%emt 0:03:47]} 16. g4 {[%emt 0:02:03]} Ng8 {[%emt 0:00:15]} 17. Qg3 {[%emt 0:11:54]} e6 {[%emt 0:05:34]} 18. Nc3 {[%emt 0:00:42]} Qa5 {[%emt 0:02:44]} 19. Bc4 {[%emt 0:01:15]} a6 {[%emt 0:01:50]} 20. Bb3 {[%emt 0:05:13]} b5 {[%emt 0:01:22]} 21. Nf3 {[%emt 0:04:56]} b4 {[%emt 0:00:28]} 22. Na4 {[%emt 0:06:29]} Nge7 {[%emt 0:04:06]} 23. f5 {[%emt 0:03:20]} d5 {[%emt 0:03:36]} 24. e5 {[%emt 0:04:23]} fxe5 {[%emt 0:02:56]} 25. Nxe5 {[%emt 0:01:19]} Qc7 {[%emt 0:00:20]} 26. f6+ {[%emt 0:05:11]} Kxf6 {[%emt 0:00:12]} 27. Rhf1+ {[%emt 0:01:03]} Nf5 {[%emt 0:01:36]} 28. gxf5 {[%emt 0:02:50]} Qxe5 {[%emt 0:00:09]} 29. fxe6+ {[%emt 0:00:25]} Kg7 {[%emt 0:01:10]} 30. Qxe5+ {[%emt 0:01:07]} Nxe5 {[%emt 0:00:11]} 31. Bxd5 {[%emt 0:00:19]} Ra7 {[%emt 0:00:52]} 32. Rde1 {[%emt 0:00:19]} Bxe6 {[%emt 0:02:06]} 33. Bxe6 {[%emt 0:01:49]} Nc6 {[%emt 0:00:02]} 34. Bd5 {[%emt 0:01:36]} Nd4 {[%emt 0:00:17]} 35. Rf4 {[%emt 0:01:03]} Nb5 {[%emt 0:00:19]} 36. Rxb4 {[%emt 0:00:59]} Rd8 {[%emt 0:00:19]} 37. c4 {[%emt 0:00:00]} Rc7 {[%emt 0:00:29]} 38. Kb1 {[%emt 0:01:16]} Nd6 {[%emt 0:00:24]} 39. b3 {[%emt 0:00:35]} Nf5 {[%emt 0:00:42]} 40. Re6 {[%emt 0:00:48]} a5 {[%emt 0:00:17]} 41. Rb7 {[%emt 0:00:33]} Rxb7 {[%emt 0:00:53]} 42. Bxb7 {[%emt 0:00:01]} Rd1+ {[%emt 0:00:08]} 43. Kc2 {[%emt 0:00:23]} Rd7 {[%emt 0:00:03]} 44. Rb6 {[%emt 0:00:50]} Rc7 {[%emt 0:00:31]} 45. Bd5 {[%emt 0:02:02]} h5 {[%emt 0:00:06]} 46. Kd3 {[%emt 0:00:39]} g5 {[%emt 0:00:06]} 47. Rb7 {[%emt 0:01:15]} Rxb7 48. Bxb7 {[%emt 0:00:03]} g4 {[%emt 0:00:22]} 49. hxg4 {[%emt 0:00:53]} hxg4 {[%emt 0:00:06]} 50. Nc5 {[%emt 0:00:31]} Kf6 {[%emt 0:00:51]} 51. Be4 {[%emt 0:00:46]} g3 {[%emt 0:00:28]} 52. Ke2 {[%emt 0:01:33]} Nd4+ {[%emt 0:00:20]} 53. Kf1 {[%emt 0:00:22]} Ke5 {[%emt 0:00:03]} 54. Kg2 {[%emt 0:01:09]} Ne2 {[%emt 0:00:27]} 55. Bc6 {[%emt 0:01:15]} Kd6 {[%emt 0:00:27]} 56. Bf3 {[%emt 0:00:14]} Nc1 {[%emt 0:00:49]} 57. Nb7+ {[%emt 0:00:33]} Ke5 {[%emt 0:00:17]} 58. Nxa5 {[%emt 0:00:41]} Nxa2 {[%emt 0:00:05]} 59. Kxg3 {[%emt 0:00:00]} Kd4 {[%emt 0:00:00]} 60. Kf4 {[%emt 0:00:33]} Kc5 {[%emt 0:00:00]} 61. Nb7+ {[%emt 0:00:51]} Kb4 {[%emt 0:00:04]} 62. c5 {[%emt 0:00:28]} Nc3 {[%emt 0:00:01]} 63. Ke5 {[%emt 0:00:26]} Kxb3 {[%emt 0:00:27]} 64. c6 {[%emt 0:00:17]} Nb5 {[%emt 0:00:35]} 65. Be2 {[%emt 0:00:24]} Na7 {[%emt 0:00:10]} 66. Kd6 {[%emt 0:00:36]} Nxc6 {[%emt 0:00:07]} 67. Kxc6 {[%emt 0:00:06]} Kc3 {[%emt 0:00:08]} 68. Kc5 {[%emt 0:00:13]} Kd2 {[%emt 0:00:09]} 69. Bb5 {[%emt 0:00:48]} Kc3 {[%emt 0:00:09]} 70. Nd6 {[%emt 0:00:26]} Kb3 {[%emt 0:00:06]} 71. Ne4 {[%emt 0:00:26]} Kc2 {[%emt 0:00:24]} 72. Kb4 {[%emt 0:00:39]} Kb2 {[%emt 0:00:08]} 73. Bc4 {[%emt 0:00:25]} Kc2 {[%emt 0:00:17]} 74. Bb5 {[%emt 0:01:20]} Kb2 {[%emt 0:00:05]} 75. Ba4 {[%emt 0:00:01]} Ka2 {[%emt 0:00:12]} 76. Bb3+ {[%emt 0:00:17]} Kb2 {[%emt 0:00:05]} 77. Nd2 {[%emt 0:01:03]} Kc1 {[%emt 0:00:40]} 78. Nf3 {[%emt 0:00:17]} Kb2 {[%emt 0:00:05]} 79. Ne1 {[%emt 0:00:45]} Kc1 {[%emt 0:01:43]} 80. Kc3 {[%emt 0:00:11]} Kb1 {[%emt 0:00:16]} 81. Nc2 {[%emt 0:00:17]} Kc1 {[%emt 0:00:07]} 82. Ba2 {[%emt 0:00:22]} Kd1 {[%emt 0:00:05]} 83. Nd4 {[%emt 0:00:25]} Ke1 {[%emt 0:01:36]} 84. Kd3 {[%emt 0:00:52]} Kf2 {[%emt 0:00:05]} 85. Be6 {[%emt 0:00:56]} Kg3 {[%emt 0:00:21]} 86. Ne2+ {[%emt 0:00:35]} Kh4 {[%emt 0:00:11]} 87. Ke4 {[%emt 0:00:22]} Kg5 {[%emt 0:00:09]} 88. Ke5 {[%emt 0:00:24]} Kg6 {[%emt 0:00:06]} 89. Bf5+ {[%emt 0:00:14]} Kf7 {[%emt 0:00:21]} 90. Nf4 {[%emt 0:00:16]} Kg7 {[%emt 0:00:11]} 91. Ne6+ {[%emt 0:00:35]} Kf7 {[%emt 0:00:32]} 92. Ng5+ {[%emt 0:00:38]} Kg7 {[%emt 0:00:05]} 93. Ke6 {[%emt 0:01:01]} Kg8 {[%emt 0:00:14]} 94. Kf6 {[%emt 0:00:15]} Kh8 {[%emt 0:00:13]} 95. Bg6 {[%emt 0:00:31]} Kg8 {[%emt 0:00:11]} 96. Nf7 {[%emt 0:00:11]} Kf8 {[%emt 0:00:00]} 97. Bh7 {[%emt 0:00:49]} Ke8 {[%emt 0:00:05]} 98. Ne5 {[%emt 0:00:37]} Kd8 {[%emt 0:00:25]} 99. Ke6 {[%emt 0:00:29]} Kc7 {[%emt 0:00:05]} 100. Kd5 {[%emt 0:00:39]} Kb6 {[%emt 0:00:07]} 101. Kc4 {[%emt 0:00:26]} Ka5 {[%emt 0:00:31]} 102. Bc2 {[%emt 0:00:13]} Kb6 {[%emt 0:00:03]} 103. Ba4 {[%emt 0:00:30]} Ka5 {[%emt 0:00:56]} 104. Be8 {[%emt 0:00:40]} Kb6 {[%emt 0:00:08]} 105. Kd5 {[%emt 0:00:17]} Kc7 {[%emt 0:00:35]} 106. Bc6 {[%emt 0:00:50]} Kb6 {[%emt 0:00:28]} 107. Kc4 {[%emt 0:00:33]} Kc7 {[%emt 0:00:39]} 108. Kc5 {[%emt 0:00:15]} Kc8 {[%emt 0:01:42]} 109. Kd6 {[%emt 0:00:32]} Kd8 {[%emt 0:00:06]} 110. Bb5 {[%emt 0:00:30]} Kc8 {[%emt 0:00:11]} 111. Bd7+ {[%emt 0:00:32]} Kb7 {[%emt 0:00:06]} 112. Nc4 {[%emt 0:00:20]} Ka6 {[%emt 0:02:10]} 113. Kc7 {[%emt 0:00:31]} Ka7 {[%emt 0:00:09]} 114. Bb5 {[%emt 0:00:35]} Ka8 {[%emt 0:00:12]} 115. Nb6+ {[%emt 0:00:34]} Ka7 {[%emt 0:00:07]} 116. Nc8+ {[%emt 0:00:10]} Ka8 {[%emt 0:00:03]} 117. Bc6# {[%emt 0:00:08]} 1-0

[Event "ESP-ch U2000 2024"]
[Site "Albacete"]
[Date "2024.08.29"]
[Round "4.7"]
[White "Hurtado Oldridge, Felipe"]
[Black "Benitez Fernandez, Pedro Vicente"]
[Result "1-0"]
[ECO "E12"]
[WhiteElo "1873"]
[BlackElo "1926"]
[Annotator "RC"]
[PlyCount "100"]
[EventDate "2024.08.27"]
[EventType "swiss"]
[EventCountry "ESP"]
[SourceTitle "playchess.com"]
[Source "ChessBase"]
[SourceQuality "1"]
[TimeControl "5400+30"]

1. d4 {[%emt 0:00:05]} Nf6 {[%emt 0:00:25]} 2. Nf3 {[%emt 0:00:25]} b6 {[%emt 0:00:55]} 3. c4 {[%emt 0:00:28]} e6 {[%emt 0:02:53]} 4. a3 {[%emt 0:01:23]} Bb7 {[%emt 0:00:56]} 5. Nc3 {[%emt 0:00:44]} Be7 {[%emt 0:01:15]} 6. Qc2 {[%emt 0:02:02]} d5 {[%emt 0:01:54]} 7. Bg5 {[%emt 0:02:21]} Nbd7 {[%emt 0:01:23]} 8. cxd5 {[%emt 0:01:53]} exd5 {[%emt 0:01:23]} 9. e3 {[%emt 0:01:51]} O-O {[%emt 0:01:13]} 10. Bd3 {[%emt 0:01:26]} Ne4 {[%emt 0:05:33]} 11. Bf4 {[%emt 0:06:13]} Ndf6 {[%emt 0:12:15]} 12. Bxc7 {[%emt 0:03:06]} Qd7 {[%emt 0:19:08]} 13. Be5 {[%emt 0:12:49]} Rac8 {[%emt 0:02:44]} 14. Nd2 {[%emt 0:06:45]} b5 {[%emt 0:24:04]} 15. Bxf6 {[%emt 0:06:31]} Bxf6 {[%emt 0:03:35]} 16. Ndxe4 {[%emt 0:05:51]} dxe4 {[%emt 0:00:23]} 17. Be2 {[%emt 0:00:02]} a5 {[%emt 0:01:39]} 18. Qd1 {[%emt 0:01:18]} b4 {[%emt 0:00:52]} 19. axb4 axb4 20. Bg4 {[%emt 0:04:20]} Qc7 {[%emt 0:08:38]} 21. Bxc8 {[%emt 0:00:09]} Qxc8 {[%emt 0:01:54]} 22. Ne2 {[%emt 0:10:05]} Ba6 {[%emt 0:00:46]} 23. O-O {[%emt 0:02:17]} Bd3 {[%emt 0:02:11]} 24. Re1 {[%emt 0:02:57]} g5 {[%emt 0:01:00]} 25. Qd2 {[%emt 0:05:38]} Be7 {[%emt 0:00:19]} 26. Rec1 {[%emt 0:00:30]} Qg4 {[%emt 0:02:27]} 27. Ng3 {[%emt 0:01:18]} f5 {[%emt 0:01:31]} 28. Qd1 {[%emt 0:00:31]} Qh4 {[%emt 0:00:39]} 29. Qh5 Qxh5 {[%emt 0:00:20]} 30. Nxh5 {[%emt 0:01:07]} f4 {[%emt 0:00:37]} 31. Rc7 {[%emt 0:01:59]} fxe3 {[%emt 0:00:12]} 32. fxe3 {[%emt 0:00:19]} Rf7 {[%emt 0:02:00]} 33. Ra8+ {[%emt 0:00:44]} Bf8 {[%emt 0:00:19]} 34. Rxf7 {[%emt 0:00:18]} Kxf7 {[%emt 0:00:09]} 35. g4 {[%emt 0:02:38]} b3 {[%emt 0:00:34]} 36. Ng3 {[%emt 0:00:53]} Bb4 {[%emt 0:00:36]} 37. Kf2 {[%emt 0:04:50]} Bd2 {[%emt 0:00:24]} 38. Ne2 {[%emt 0:01:29]} Ke6 {[%emt 0:00:43]} 39. Rc8 {[%emt 0:01:16]} Bc2 {[%emt 0:01:05]} 40. Rc5 {[%emt 0:00:41]} h6 {[%emt 0:00:26]} 41. Nc3 {[%emt 0:02:26]} Bc1 {[%emt 0:00:49]} 42. Na4 {[%emt 0:00:07]} Bd2 {[%emt 0:00:20]} 43. Rb5 {[%emt 0:02:56]} Bc1 {[%emt 0:00:48]} 44. Nc5+ {[%emt 0:00:49]} Kf6 {[%emt 0:00:33]} 45. Rb6+ {[%emt 0:00:36]} Kg7 {[%emt 0:00:14]} 46. Nxb3 {[%emt 0:00:42]} Bxb2 {[%emt 0:00:16]} 47. d5 {[%emt 0:01:02]} Be5 {[%emt 0:00:40]} 48. h3 {[%emt 0:00:18]} Kf7 {[%emt 0:00:34]} 49. Nd4 {[%emt 0:00:32]} Bd1 {[%emt 0:00:40]} 50. Rxh6 {[%emt 0:01:04]} Ke8 1-0

[Event "ESP-ch U2000 2024"]
[Site "Albacete"]
[Date "2024.08.29"]
[Round "4.8"]
[White "Perez Pinazo, Jose Oscar"]
[Black "Machin Arbelo, Pedro Alexis"]
[Result "0-1"]
[ECO "D00"]
[WhiteElo "1688"]
[BlackElo "1916"]
[Annotator "RC"]
[PlyCount "58"]
[EventDate "2024.08.27"]
[EventType "swiss"]
[EventCountry "ESP"]
[SourceTitle "playchess.com"]
[Source "ChessBase"]
[SourceQuality "1"]
[TimeControl "5400+30"]

1. d4 d5 2. Bf4 {[%emt 0:00:39]} e6 {[%emt 0:03:04]} 3. e3 {[%emt 0:00:09]} Bd6 {[%emt 0:00:09]} 4. Bg3 {[%emt 0:00:07]} Nf6 {[%emt 0:00:20]} 5. Nd2 {[%emt 0:00:25]} c5 {[%emt 0:01:38]} 6. c3 {[%emt 0:00:07]} Nc6 {[%emt 0:00:11]} 7. Bd3 {[%emt 0:00:56]} O-O {[%emt 0:00:39]} 8. Ngf3 {[%emt 0:00:16]} Re8 {[%emt 0:00:22]} 9. Ne5 {[%emt 0:00:31]} Bxe5 {[%emt 0:00:32]} 10. dxe5 {[%emt 0:00:11]} Nd7 {[%emt 0:00:05]} 11. f4 {[%emt 0:00:15]} c4 {[%emt 0:00:11]} 12. Bc2 {[%emt 0:00:33]} Qb6 {[%emt 0:00:16]} 13. O-O {[%emt 0:04:09]} Qxe3+ {[%emt 0:14:19]} 14. Bf2 {[%emt 0:02:35]} Qxf4 {[%emt 0:00:26]} 15. Bd4 {[%emt 0:00:21]} Qh6 {[%emt 0:00:50]} 16. Qf3 {[%emt 0:20:02]} Ndxe5 {[%emt 0:16:43]} 17. Qe2 {[%emt 0:06:07]} Nxd4 {[%emt 0:16:34]} 18. cxd4 {[%emt 0:01:25]} Ng4 {[%emt 0:06:26]} 19. Qxg4 {[%emt 0:09:16]} Qxd2 {[%emt 0:01:14]} 20. Rxf7 {[%emt 0:30:13]} Kxf7 {[%emt 0:15:36]} 21. Rf1+ {[%emt 0:06:13]} Ke7 {[%emt 0:18:40]} 22. Qxg7+ {[%emt 0:00:31]} Kd6 {[%emt 0:00:04]} 23. Qe5+ {[%emt 0:00:35]} Kc6 {[%emt 0:00:10]} 24. Bxh7 {[%emt 0:07:42]} Bd7 {[%emt 0:00:43]} 25. b4 {[%emt 0:00:03]} b5 {[%emt 0:02:13]} 26. a4 {[%emt 0:03:37]} Rf8 {[%emt 0:00:18]} 27. axb5+ {[%emt 0:00:44]} Kxb5 {[%emt 0:00:21]} 28. Rxf8 Rxf8 {[%emt 0:00:06]} 29. h3 {[%emt 0:01:45]} Qc1+ {[%emt 0:00:16]} 0-1

[Event "ESP-ch U2000 2024"]
[Site "Albacete"]
[Date "2024.08.29"]
[Round "4.9"]
[White "Arnedo Vigueras, Miguel"]
[Black "Campos Saez, Sergio"]
[Result "1-0"]
[ECO "C44"]
[WhiteElo "1850"]
[BlackElo "1923"]
[Annotator "RC"]
[PlyCount "65"]
[EventDate "2024.08.27"]
[EventType "swiss"]
[EventCountry "ESP"]
[SourceTitle "playchess.com"]
[Source "ChessBase"]
[SourceQuality "1"]
[TimeControl "5400+30"]

1. e4 e5 2. Nf3 Nc6 3. d4 exd4 4. Nxd4 Nf6 5. Nc3 Bb4 6. Nxc6 bxc6 7. Bd3 d5 8. exd5 cxd5 9. O-O O-O 10. Bg5 Be7 11. Qf3 c6 12. Rae1 Be6 13. h3 Rb8 14. Ne2 c5 15. b3 h6 16. Bxf6 Bxf6 17. Nf4 Qd6 18. Nxe6 fxe6 19. Qg4 e5 20. c4 e4 21. Bc2 Bc3 22. Rd1 Rf4 23. Qe2 Bd4 24. cxd5 Rbf8 25. Kh1 Qxd5 26. a4 Qe5 27. Rde1 Rxf2 28. Rxf2 Rxf2 29. Qc4+ Kh8 30. Rxe4 Qb8 31. Qd3 g6 32. Rxd4 Qf8 33. Rd8 1-0

[Event "ESP-ch U2000 2024"]
[Site "Albacete"]
[Date "2024.08.29"]
[Round "5.1"]
[White "Perez Travieso, Saul"]
[Black "Sala Esquiva, Miguel"]
[Result "1-0"]
[ECO "A05"]
[WhiteElo "1933"]
[BlackElo "1967"]
[Annotator "RC"]
[PlyCount "101"]
[EventDate "2024.08.27"]
[EventType "swiss"]
[EventCountry "ESP"]
[SourceTitle "playchess.com"]
[Source "ChessBase"]
[SourceQuality "1"]
[TimeControl "5400+30"]

1. Nf3 {[%emt 0:00:07]} Nf6 {[%emt 0:00:10]} 2. g3 {[%emt 0:00:04]} g6 {[%emt 0:00:05]} 3. Bg2 {[%emt 0:00:03]} Bg7 {[%emt 0:00:08]} 4. c4 {[%emt 0:00:04]} d6 {[%emt 0:02:10]} 5. O-O {[%emt 0:00:14]} O-O {[%emt 0:00:14]} 6. d3 {[%emt 0:00:05]} c5 {[%emt 0:04:18]} 7. Nc3 {[%emt 0:00:09]} Nc6 {[%emt 0:00:23]} 8. Rb1 {[%emt 0:00:04]} Rb8 {[%emt 0:07:46]} 9. a3 {[%emt 0:01:11]} Ne8 {[%emt 0:03:21]} 10. Bd2 {[%emt 0:06:57]} a5 {[%emt 0:06:49]} 11. Nb5 b6 {[%emt 0:06:40]} 12. Bc3 {[%emt 0:27:31]} e5 {[%emt 0:05:00]} 13. Ne1 {[%emt 0:02:34]} Nd4 {[%emt 0:08:44]} 14. b4 {[%emt 0:02:08]} Nxb5 {[%emt 0:05:13]} 15. cxb5 {[%emt 0:00:18]} axb4 {[%emt 0:01:40]} 16. axb4 {[%emt 0:00:24]} Bb7 {[%emt 0:03:46]} 17. Bxb7 {[%emt 0:02:17]} Rxb7 {[%emt 0:01:05]} 18. bxc5 {[%emt 0:01:08]} dxc5 {[%emt 0:00:52]} 19. Qb3 {[%emt 0:01:37]} Nc7 {[%emt 0:04:47]} 20. Nf3 {[%emt 0:05:03]} Re8 {[%emt 0:00:38]} 21. Nd2 {[%emt 0:06:05]} Ne6 {[%emt 0:05:23]} 22. Rfe1 {[%emt 0:06:16]} Nd4 {[%emt 0:04:51]} 23. Qb2 {[%emt 0:10:26]} Rbe7 {[%emt 0:01:42]} 24. Ra1 {[%emt 0:01:45]} Qd7 {[%emt 0:01:22]} 25. Bxd4 {[%emt 0:00:07]} exd4 {[%emt 0:00:59]} 26. Nc4 {[%emt 0:00:06]} Re6 {[%emt 0:05:05]} 27. Ra6 {[%emt 0:01:29]} Qc7 {[%emt 0:00:14]} 28. Qa2 {[%emt 0:05:15]} Rb8 {[%emt 0:10:21]} 29. Ra7 {[%emt 0:02:22]} Rb7 {[%emt 0:02:01]} 30. Ra8+ {[%emt 0:00:43]} Bf8 {[%emt 0:01:03]} 31. e4 {[%emt 0:10:20]} dxe3 {[%emt 0:03:05]} 32. Rxe3 {[%emt 0:00:13]} Rxe3 {[%emt 0:02:02]} 33. Nxe3 {[%emt 0:00:12]} Qd6 {[%emt 0:01:41]} 34. Qa1 {[%emt 0:06:59]} Qxd3 {[%emt 0:01:49]} 35. Rxf8+ {[%emt 0:01:29]} Kxf8 {[%emt 0:00:08]} 36. Qa8+ {[%emt 0:00:03]} Kg7 {[%emt 0:00:20]} 37. Qxb7 {[%emt 0:00:06]} Qxb5 {[%emt 0:00:44]} 38. Qd5 {[%emt 0:00:25]} Qb1+ {[%emt 0:01:11]} 39. Kg2 {[%emt 0:00:05]} Qa1 {[%emt 0:01:07]} 40. Nc4 {[%emt 0:00:18]} Qa6 {[%emt 0:00:22]} 41. Qe5+ {[%emt 0:01:52]} Kg8 {[%emt 0:00:04]} 42. Qb8+ {[%emt 0:00:06]} Kg7 {[%emt 0:00:06]} 43. Nxb6 {[%emt 0:00:04]} c4 {[%emt 0:00:27]} 44. Qe5+ {[%emt 0:00:10]} Kg8 {[%emt 0:00:21]} 45. Nd5 {[%emt 0:00:17]} Qa8 {[%emt 0:01:05]} 46. Qe4 {[%emt 0:00:04]} Qa6 {[%emt 0:00:53]} 47. Ne3 {[%emt 0:00:30]} h5 {[%emt 0:01:04]} 48. Qxc4 {[%emt 0:00:08]} Qf6 {[%emt 0:00:13]} 49. Nd5 {[%emt 0:01:04]} Qe6 {[%emt 0:00:17]} 50. Qc8+ {[%emt 0:00:13]} Qxc8 {[%emt 0:00:07]} 51. Ne7+ 1-0